[Event "10th Iberoamericano-ch 2024"]
[Site "Linares"]
[Date "2024.09.28"]
[Round "6.29"]
[White "Garzon Zapatanga, Christopher Leonel"]
[Black "Domingo Nunez, Alejandro"]
[Result "1-0"]
[Annotator "ChessBase"]
[ECO "B06"]
[WhiteElo "2216"]
[BlackElo "2328"]
[PlyCount "55"]
[EventDate "2024.09.25"]
[EventType "swiss"]
[EventCountry "ESP"]
[SourceTitle "playchess.com"]
[Source "ChessBase"]
[SourceQuality "1"]
[TimeControl "5400+30"]

1. e4 {[%emt 0:00:03]} g6 {[%emt 0:06:10]} 2. d4 {[%emt 0:00:36]} Bg7 {[%emt 0:00:05]} 3. Nc3 {[%emt 0:00:07]} c6 {[%emt 0:00:04]} 4. Be3 {[%emt 0:03:17]} d5 {[%emt 0:00:06]} 5. e5 {[%emt 0:03:03]} f6 {[%emt 0:00:07]} 6. f4 {[%emt 0:02:43]} Nh6 {[%emt 0:00:09]} 7. Nf3 {[%emt 0:00:59]} Bg4 {[%emt 0:01:12]} 8. Be2 {[%emt 0:00:56]} O-O {[%emt 0:02:03]} 9. Qd2 {[%emt 0:02:01]} Nf5 {[%emt 0:00:24]} 10. Bf2 {[%emt 0:01:37]} Bh6 {[%emt 0:04:32]} 11. g3 {[%emt 0:02:23]} Bxf3 {[%emt 0:17:02]} 12. Bxf3 {[%emt 0:00:09]} Nd7 {[%emt 0:01:07]} 13. Qe2 {[%emt 0:02:25]} fxe5 {[%emt 0:04:00]} 14. dxe5 {[%emt 0:01:01]} e6 {[%emt 0:00:10]} 15. O-O-O {[%emt 0:01:10]} g5 {[%emt 0:00:06]} 16. g4 {[%emt 0:27:48]} Ne7 {[%emt 0:29:01]} 17. f5 {[%emt 0:02:06]} exf5 {[%emt 0:00:08]} 18. Kb1 {[%emt 0:00:22]} Bg7 {[%emt 0:00:32]} 19. Bd4 {[%emt 0:09:04]} fxg4 {[%emt 0:11:22]} 20. Bxg4 {[%emt 0:00:17]} Ng6 {[%emt 0:00:03]} 21. h4 {[%emt 0:05:30]} Ndxe5 {[%emt 0:03:11]} 22. Be6+ {[%emt 0:01:07]} Kh8 {[%emt 0:00:16]} 23. hxg5 {[%emt 0:00:09]} Qxg5 {[%emt 0:12:14]} 24. Rdg1 {[%emt 0:00:41]} Qe7 {[%emt 0:00:16]} 25. Qh5 {[%emt 0:03:18]} Bf6 {[%emt 0:03:24]} 26. Bf5 {[%emt 0:00:31]} Nh4 {[%emt 0:04:30]} 27. Bxe5 {[%emt 0:01:25]} Nxf5 {[%emt 0:00:30]} 28. Qxf5 {[%emt 0:00:04]} 1-0

[Event "10th Iberoamericano-ch 2024"]
[Site "Linares"]
[Date "2024.09.28"]
[Round "6.30"]
[White "Ontanon Gomez, Pablo"]
[Black "Ticona Rocabado, Licael Roderick"]
[Result "0-1"]
[Annotator "ChessBase"]
[ECO "C00"]
[WhiteElo "2118"]
[BlackElo "2321"]
[PlyCount "136"]
[EventDate "2024.09.25"]
[EventType "swiss"]
[EventCountry "ESP"]
[SourceTitle "playchess.com"]
[Source "ChessBase"]
[SourceQuality "1"]
[TimeControl "5400+30"]

1. e4 {[%emt 0:00:02]} e6 2. Qe2 c5 3. b3 Nc6 4. Bb2 d5 5. exd5 Qxd5 6. Nc3 Qd7 7. Nf3 Nf6 8. O-O-O a6 9. g4 Nd4 10. Nxd4 cxd4 11. Ne4 Be7 12. Nxf6+ Bxf6 13. Qe4 Qd6 14. g5 Bxg5 15. Qxd4 Qxd4 16. Bxd4 f6 17. Bg2 Kd7 18. Be3 Bxe3 19. dxe3+ Kc7 20. Rd4 Rd8 21. Rc4+ Kb8 22. Rd1 Rxd1+ 23. Kxd1 e5 24. f4 exf4 25. exf4 Ra7 26. Re4 b5 27. Re8 Rd7+ 28. Ke2 f5 29. Ke3 b4 30. Bf1 Kc7 31. Bd3 g6 32. h4 h5 33. Bc4 Rd1 34. Re7+ Kd8 35. Rg7 Re1+ 36. Be2 Bd7 37. Rxg6 Bb5 38. Rg2 Bc6 39. Kd2 Rh1 40. Rg5 Rxh4 41. Rxf5 Be8 42. Bxa6 Rh2+ 43. Be2 h4 44. Ke3 h3 45. Rd5+ Ke7 46. Re5+ Kf8 47. Rf5+ Ke7 48. Re5+ Kf8 49. Rf5+ Kg7 50. Rg5+ Kf6 51. Rg1 Bd7 52. Bd3 Be8 53. Be4 Bh5 54. Re1 Bg4 55. Bf3 Bxf3 56. Kxf3 Rxc2 57. Rh1 h2 58. Kg3 Kf5 59. Re1 Re2 60. Rh1 Rxa2 61. Re1 Re2 62. Rf1 Rb2 63. Re1 Rxb3+ 64. Kxh2 Kxf4 65. Re8 Rb2+ 66. Kg1 b3 67. Kf1 Rc2 68. Rf8+ Ke5 0-1

[Event "10th Iberoamericano-ch 2024"]
[Site "Linares"]
[Date "2024.09.28"]
[Round "6.31"]
[White "Blanco Acevedo, Cristobal Jose"]
[Black "Gavarrete, Joel"]
[Result "1-0"]
[Annotator "ChessBase"]
[ECO "A46"]
[WhiteElo "2301"]
[BlackElo "2059"]
[PlyCount "51"]
[EventDate "2024.09.25"]
[EventType "swiss"]
[EventCountry "ESP"]
[SourceTitle "playchess.com"]
[Source "ChessBase"]
[SourceQuality "1"]
[TimeControl "5400+30"]

1. d4 {[%emt 0:00:34]} Nf6 {[%emt 0:02:54]} 2. Nf3 {[%emt 0:00:41]} e6 {[%emt 0:00:42]} 3. Bg5 {[%emt 0:00:16]} Be7 {[%emt 0:01:04]} 4. Nbd2 {[%emt 0:00:08]} d5 {[%emt 0:00:16]} 5. e3 {[%emt 0:00:07]} O-O {[%emt 0:01:06]} 6. Bd3 {[%emt 0:00:04]} c5 {[%emt 0:01:31]} 7. c3 {[%emt 0:00:08]} Nbd7 {[%emt 0:04:18]} 8. O-O {[%emt 0:01:05]} b6 {[%emt 0:04:13]} 9. e4 {[%emt 0:01:42]} dxe4 {[%emt 0:01:21]} 10. Nxe4 {[%emt 0:00:06]} Bb7 {[%emt 0:00:54]} 11. Ng3 {[%emt 0:03:04]} cxd4 {[%emt 0:11:59]} 12. cxd4 {[%emt 0:00:27]} Nd5 {[%emt 0:04:13]} 13. Bd2 {[%emt 0:01:49]} N7f6 {[%emt 0:00:25]} 14. a3 {[%emt 0:00:30]} Qd6 {[%emt 0:05:26]} 15. Ne5 {[%emt 0:01:06]} Rac8 {[%emt 0:03:32]} 16. Qe2 {[%emt 0:02:30]} Qb8 {[%emt 0:12:23]} 17. Rad1 {[%emt 0:02:47]} Bd6 {[%emt 0:04:25]} 18. f4 {[%emt 0:04:05]} Ne7 {[%emt 0:05:33]} 19. f5 {[%emt 0:02:32]} Nxf5 {[%emt 0:00:36]} 20. Nxf5 {[%emt 0:00:19]} exf5 {[%emt 0:00:07]} 21. Rxf5 {[%emt 0:00:12]} Bxe5 {[%emt 0:08:14]} 22. dxe5 {[%emt 0:01:17]} Nd5 {[%emt 0:01:04]} 23. e6 {[%emt 0:03:55]} Qd6 {[%emt 0:11:58]} 24. Rxf7 {[%emt 0:02:01]} Rxf7 {[%emt 0:01:59]} 25. exf7+ {[%emt 0:00:54]} Kxf7 {[%emt 0:01:02]} 26. Qh5+ {[%emt 0:00:25]} 1-0

[Event "10th Iberoamericano-ch 2024"]
[Site "Linares"]
[Date "2024.09.28"]
[Round "6.32"]
[White "Bendayan Claros, Aaron"]
[Black "Giron, Jorge Ernesto"]
[Result "1/2-1/2"]
[Annotator "ChessBase"]
[ECO "D34"]
[WhiteElo "2200"]
[BlackElo "2276"]
[PlyCount "112"]
[EventDate "2024.09.25"]
[EventType "swiss"]
[EventCountry "ESP"]
[SourceTitle "playchess.com"]
[Source "ChessBase"]
[SourceQuality "1"]
[TimeControl "5400+30"]

1. d4 {[%emt 0:00:43]} Nf6 {[%emt 0:00:15]} 2. c4 {[%emt 0:00:12]} e6 {[%emt 0:00:15]} 3. Nc3 {[%emt 0:00:31]} d5 {[%emt 0:01:11]} 4. Nf3 {[%emt 0:00:09]} c5 {[%emt 0:02:34]} 5. cxd5 {[%emt 0:00:13]} exd5 {[%emt 0:00:05]} 6. g3 {[%emt 0:01:25]} Nc6 {[%emt 0:01:13]} 7. Bg2 {[%emt 0:00:15]} Be7 {[%emt 0:04:50]} 8. O-O {[%emt 0:00:18]} cxd4 {[%emt 0:01:22]} 9. Nxd4 {[%emt 0:00:20]} O-O {[%emt 0:00:03]} 10. Be3 {[%emt 0:13:25]} Be6 {[%emt 0:09:50]} 11. Nxc6 {[%emt 0:03:14]} bxc6 {[%emt 0:00:03]} 12. Na4 {[%emt 0:00:27]} Qd7 {[%emt 0:05:37]} 13. Bc5 {[%emt 0:04:20]} Bh3 {[%emt 0:00:12]} 14. Bxe7 {[%emt 0:18:54]} Bxg2 {[%emt 0:00:04]} 15. Kxg2 {[%emt 0:03:33]} Qxe7 {[%emt 0:00:04]} 16. Qc2 {[%emt 0:02:21]} Rab8 {[%emt 0:21:35]} 17. Nc5 {[%emt 0:05:05]} h5 {[%emt 0:07:45]} 18. Rac1 {[%emt 0:08:09]} h4 {[%emt 0:01:01]} 19. b3 {[%emt 0:01:14]} g6 {[%emt 0:09:52]} 20. Rfe1 {[%emt 0:07:08]} Rfe8 {[%emt 0:06:11]} 21. Qc3 {[%emt 0:06:11]} Qd6 {[%emt 0:05:13]} 22. Qd4 {[%emt 0:04:16]} hxg3 {[%emt 0:01:04]} 23. hxg3 {[%emt 0:00:34]} a5 {[%emt 0:00:02]} 24. e4 {[%emt 0:05:02]} Rb4 {[%emt 0:01:46]} 25. Rc4 {[%emt 0:01:34]} Nh5 {[%emt 0:14:50]} 26. Rxb4 {[%emt 0:04:35]} axb4 {[%emt 0:00:02]} 27. e5 {[%emt 0:01:21]} Qb8 {[%emt 0:01:54]} 28. Nd3 {[%emt 0:02:51]} Ng7 {[%emt 0:01:23]} 29. Qxb4 {[%emt 0:01:30]} Qa7 {[%emt 0:00:36]} 30. a4 {[%emt 0:00:46]} Rb8 {[%emt 0:00:58]} 31. Qc5 {[%emt 0:03:47]} Qa8 {[%emt 0:00:53]} 32. Nf4 {[%emt 0:00:34]} Rxb3 {[%emt 0:00:19]} 33. e6 {[%emt 0:00:12]} fxe6 {[%emt 0:00:43]} 34. Nxe6 {[%emt 0:01:37]} Qe8 {[%emt 0:00:05]} 35. Qd6 {[%emt 0:00:08]} Rb7 {[%emt 0:00:17]} 36. Re5 {[%emt 0:00:59]} Nf5 {[%emt 0:00:50]} 37. Qc5 {[%emt 0:00:31]} Re7 {[%emt 0:01:48]} 38. Nc7 {[%emt 0:00:15]} Qd7 {[%emt 0:00:01]} 39. Rxe7 {[%emt 0:00:34]} Nxe7 {[%emt 0:00:10]} 40. Na6 {[%emt 0:00:39]} Qe6 {[%emt 0:02:16]} 41. Qe3 {[%emt 0:00:21]} Qxe3 {[%emt 0:00:39]} 42. fxe3 {[%emt 0:00:01]} Nc8 {[%emt 0:00:11]} 43. Nc5 {[%emt 0:00:40]} Kf7 {[%emt 0:00:11]} 44. Kf3 {[%emt 0:00:14]} Ke7 {[%emt 0:00:12]} 45. Kf4 {[%emt 0:00:42]} Kd6 {[%emt 0:00:41]} 46. Nb7+ {[%emt 0:00:31]} Kc7 {[%emt 0:00:07]} 47. Nc5 {[%emt 0:00:02]} Kd6 {[%emt 0:00:03]} 48. Nb3 {[%emt 0:01:30]} c5 {[%emt 0:02:16]} 49. Kg5 {[%emt 0:00:08]} Nb6 {[%emt 0:00:29]} 50. a5 {[%emt 0:00:10]} Nc4 {[%emt 0:00:04]} 51. a6 {[%emt 0:00:29]} Kc6 {[%emt 0:00:27]} 52. a7 {[%emt 0:01:12]} Kb7 {[%emt 0:00:03]} 53. Nxc5+ {[%emt 0:00:22]} Kxa7 {[%emt 0:00:02]} 54. Kf4 {[%emt 0:00:22]} g5+ {[%emt 0:00:14]} 55. Kf3 {[%emt 0:00:40]} Ne5+ {[%emt 0:00:04]} 56. Ke2 {[%emt 0:00:25]} Kb6 {[%emt 0:00:26]} 1/2-1/2

[Event "10th Iberoamericano-ch 2024"]
[Site "Linares"]
[Date "2024.09.28"]
[Round "6.33"]
[White "Pastor Carvajal, Jeigoth"]
[Black "Mingarro Carceller, Sergi"]
[Result "0-1"]
[Annotator "ChessBase"]
[ECO "B23"]
[WhiteElo "2120"]
[BlackElo "2273"]
[PlyCount "62"]
[EventDate "2024.09.25"]
[EventType "swiss"]
[EventCountry "ESP"]
[SourceTitle "playchess.com"]
[Source "ChessBase"]
[SourceQuality "1"]
[TimeControl "5400+30"]

1. e4 {[%emt 0:00:37]} c5 {[%emt 0:00:05]} 2. Nc3 Nc6 {[%emt 0:00:27]} 3. f4 {[%emt 0:00:31]} g6 {[%emt 0:00:29]} 4. Nf3 {[%emt 0:00:04]} Bg7 {[%emt 0:00:13]} 5. a4 {[%emt 0:00:03]} b6 {[%emt 0:00:47]} 6. Bc4 {[%emt 0:01:30]} e6 {[%emt 0:00:32]} 7. e5 {[%emt 0:01:47]} Nge7 {[%emt 0:01:09]} 8. Nb5 {[%emt 0:08:26]} O-O {[%emt 0:01:48]} 9. c3 {[%emt 0:06:00]} Nf5 {[%emt 0:11:46]} 10. d4 {[%emt 0:10:15]} a6 {[%emt 0:05:54]} 11. Na3 {[%emt 0:00:21]} Bb7 {[%emt 0:07:49]} 12. O-O {[%emt 0:02:21]} cxd4 {[%emt 0:03:27]} 13. cxd4 {[%emt 0:00:55]} b5 {[%emt 0:02:10]} 14. Be2 {[%emt 0:08:17]} Qb6 {[%emt 0:03:15]} 15. Nc2 {[%emt 0:00:18]} b4 {[%emt 0:06:14]} 16. g4 {[%emt 0:03:22]} b3 {[%emt 0:07:26]} 17. gxf5 {[%emt 0:00:12]} bxc2 {[%emt 0:00:06]} 18. Qd2 {[%emt 0:02:42]} exf5 {[%emt 0:00:39]} 19. a5 {[%emt 0:00:58]} Qa7 {[%emt 0:00:34]} 20. Ra4 {[%emt 0:00:50]} d6 {[%emt 0:01:55]} 21. Kg2 {[%emt 0:01:53]} Rad8 {[%emt 0:06:15]} 22. d5 {[%emt 0:08:01]} dxe5 {[%emt 0:01:35]} 23. Qxc2 {[%emt 0:02:51]} Rxd5 {[%emt 0:01:58]} 24. Bc4 {[%emt 0:00:53]} Rd7 {[%emt 0:05:19]} 25. Kg3 {[%emt 0:00:15]} exf4+ {[%emt 0:02:03]} 26. Bxf4 {[%emt 0:00:18]} Nd4 {[%emt 0:00:59]} 27. Nxd4 {[%emt 0:00:14]} Rxd4 {[%emt 0:00:08]} 28. Re1 {[%emt 0:02:02]} g5 {[%emt 0:02:58]} 29. Bxf7+ {[%emt 0:00:24]} Rxf7 {[%emt 0:00:53]} 30. Rxd4 {[%emt 0:00:15]} Qxd4 {[%emt 0:00:44]} 31. Re8+ {[%emt 0:00:08]} Bf8 {[%emt 0:00:17]} 0-1

[Event "10th Iberoamericano-ch 2024"]
[Site "Linares"]
[Date "2024.09.28"]
[Round "6.34"]
[White "Li Chen, Helena Joana"]
[Black "Cabezas Solano, David Alejandro"]
[Result "1-0"]
[Annotator "ChessBase"]
[ECO "B91"]
[WhiteElo "2068"]
[BlackElo "2248"]
[PlyCount "185"]
[EventDate "2024.09.25"]
[EventType "swiss"]
[EventCountry "ESP"]
[SourceTitle "playchess.com"]
[Source "ChessBase"]
[SourceQuality "1"]
[TimeControl "5400+30"]

1. e4 {[%emt 0:00:08]} c5 {[%emt 0:01:35]} 2. Nf3 {[%emt 0:00:07]} d6 {[%emt 0:00:04]} 3. d4 {[%emt 0:00:05]} cxd4 4. Nxd4 Nf6 5. Nc3 {[%emt 0:00:06]} a6 {[%emt 0:00:17]} 6. g3 {[%emt 0:00:04]} e5 {[%emt 0:00:55]} 7. Nde2 {[%emt 0:00:56]} Be7 {[%emt 0:01:11]} 8. Bg2 {[%emt 0:01:07]} b5 {[%emt 0:00:58]} 9. Nf4 {[%emt 0:04:48]} Nbd7 {[%emt 0:06:16]} 10. Nd3 {[%emt 0:05:27]} Rb8 {[%emt 0:05:44]} 11. a3 {[%emt 0:05:14]} O-O {[%emt 0:01:15]} 12. Be3 {[%emt 0:02:00]} Nb6 {[%emt 0:02:31]} 13. Nb4 {[%emt 0:01:23]} Bb7 {[%emt 0:07:59]} 14. Bxb6 {[%emt 0:05:52]} Qxb6 {[%emt 0:00:01]} 15. Nbd5 {[%emt 0:00:08]} Nxd5 {[%emt 0:03:06]} 16. Nxd5 {[%emt 0:00:03]} Bxd5 {[%emt 0:00:07]} 17. Qxd5 {[%emt 0:00:04]} Rfc8 {[%emt 0:00:05]} 18. Qb3 {[%emt 0:03:43]} b4 {[%emt 0:03:48]} 19. a4 {[%emt 0:12:03]} Bg5 {[%emt 0:09:31]} 20. h4 {[%emt 0:03:20]} Bd2+ {[%emt 0:01:22]} 21. Ke2 {[%emt 0:02:29]} Qc5 {[%emt 0:05:13]} 22. Rhd1 {[%emt 0:03:38]} Bh6 {[%emt 0:00:20]} 23. Ke1 {[%emt 0:02:29]} Qxc2 {[%emt 0:11:07]} 24. Qxc2 {[%emt 0:00:07]} Rxc2 {[%emt 0:00:02]} 25. b3 {[%emt 0:00:04]} Rb2 {[%emt 0:05:42]} 26. Rab1 {[%emt 0:00:30]} Bd2+ {[%emt 0:09:13]} 27. Ke2 {[%emt 0:01:41]} Rxb1 {[%emt 0:00:05]} 28. Rxb1 {[%emt 0:00:06]} Bc3 {[%emt 0:00:03]} 29. Bf1 {[%emt 0:00:28]} a5 {[%emt 0:01:24]} 30. Rd1 {[%emt 0:00:40]} Bd4 {[%emt 0:02:37]} 31. Rc1 {[%emt 0:00:04]} Bc5 {[%emt 0:00:02]} 32. Kf3 {[%emt 0:01:32]} h5 {[%emt 0:01:29]} 33. Bc4 {[%emt 0:00:16]} g6 {[%emt 0:00:06]} 34. Bd5 {[%emt 0:00:57]} Kg7 {[%emt 0:00:23]} 35. Ke2 {[%emt 0:02:16]} f5 {[%emt 0:03:20]} 36. f3 {[%emt 0:00:26]} Rf8 {[%emt 0:01:48]} 37. Rf1 {[%emt 0:01:31]} f4 {[%emt 0:01:37]} 38. g4 {[%emt 0:00:08]} hxg4 {[%emt 0:03:40]} 39. fxg4 {[%emt 0:00:06]} Bd4 {[%emt 0:02:05]} 40. Kf3 {[%emt 0:00:33]} Rc8 {[%emt 0:01:26]} 41. Bc4 {[%emt 0:00:16]} Rh8 {[%emt 0:00:43]} 42. Rh1 {[%emt 0:00:09]} Bb6 {[%emt 0:00:21]} 43. g5 {[%emt 0:00:40]} Kf8 {[%emt 0:03:20]} 44. Kg4 {[%emt 0:00:36]} Rh5 {[%emt 0:00:27]} 45. Rd1 {[%emt 0:00:44]} Bd4 {[%emt 0:00:57]} 46. Rd3 {[%emt 0:00:13]} Ke7 {[%emt 0:00:20]} 47. Rh3 {[%emt 0:00:11]} Be3 {[%emt 0:01:06]} 48. Rh1 {[%emt 0:00:35]} Bc5 {[%emt 0:05:41]} 49. Rh3 {[%emt 0:01:05]} Kf8 {[%emt 0:00:26]} 50. Bd5 {[%emt 0:01:37]} Kg7 {[%emt 0:00:21]} 51. Bc4 {[%emt 0:00:07]} Bf2 {[%emt 0:00:32]} 52. Rh2 {[%emt 0:00:21]} Be1 {[%emt 0:00:41]} 53. Rh1 {[%emt 0:00:08]} Bf2 {[%emt 0:01:03]} 54. Rh2 {[%emt 0:00:06]} Be3 {[%emt 0:00:08]} 55. Rh1 {[%emt 0:00:47]} Rh8 {[%emt 0:01:02]} 56. Rd1 {[%emt 0:00:15]} Bd4 {[%emt 0:00:47]} 57. Rh1 {[%emt 0:00:14]} f3 {[%emt 0:01:44]} 58. Kxf3 {[%emt 0:01:35]} Rf8+ {[%emt 0:00:00]} 59. Kg3 {[%emt 0:00:24]} Bf2+ {[%emt 0:00:39]} 60. Kg2 {[%emt 0:01:47]} Rf4 {[%emt 0:00:01]} 61. h5 {[%emt 0:00:02]} Bh4 {[%emt 0:01:33]} 62. hxg6 {[%emt 0:00:57]} Kxg6 {[%emt 0:00:03]} 63. Rf1 {[%emt 0:00:30]} Kxg5 {[%emt 0:01:04]} 64. Bd5 {[%emt 0:00:39]} Rg4+ {[%emt 0:00:21]} 65. Kf3 {[%emt 0:00:06]} Rg3+ {[%emt 0:00:33]} 66. Ke2 {[%emt 0:00:07]} Rg2+ {[%emt 0:00:35]} 67. Kd3 {[%emt 0:00:06]} Rg3+ {[%emt 0:00:30]} 68. Kc4 {[%emt 0:00:09]} Rc3+ {[%emt 0:00:02]} 69. Kb5 {[%emt 0:00:04]} Rc5+ {[%emt 0:00:03]} 70. Ka6 {[%emt 0:00:19]} Kg4 {[%emt 0:01:18]} 71. Be6+ {[%emt 0:00:37]} Kg3 {[%emt 0:00:12]} 72. Rf7 {[%emt 0:00:07]} Bg5 {[%emt 0:00:48]} 73. Bd5 {[%emt 0:02:23]} Kg4 {[%emt 0:00:38]} 74. Rd7 {[%emt 0:00:36]} Kf3 {[%emt 0:00:03]} 75. Rxd6 {[%emt 0:00:30]} Ke3 {[%emt 0:00:03]} 76. Kb6 {[%emt 0:00:14]} Rc8 {[%emt 0:01:24]} 77. Kxa5 {[%emt 0:00:13]} Bd8+ {[%emt 0:00:15]} 78. Kb5 {[%emt 0:00:45]} Rb8+ {[%emt 0:00:06]} 79. Kc4 {[%emt 0:00:11]} Rc8+ {[%emt 0:00:42]} 80. Rc6 {[%emt 0:00:15]} Rb8 {[%emt 0:00:10]} 81. Ra6 {[%emt 0:01:14]} Be7 {[%emt 0:00:51]} 82. Ra8 {[%emt 0:00:28]} Rxa8 {[%emt 0:00:57]} 83. Bxa8 {[%emt 0:00:07]} Bd6 {[%emt 0:00:26]} 84. Bd5 {[%emt 0:00:19]} Be7 {[%emt 0:00:06]} 85. a5 {[%emt 0:00:06]} Bd6 {[%emt 0:00:44]} 86. a6 {[%emt 0:00:18]} Bb8 {[%emt 0:00:07]} 87. Kxb4 {[%emt 0:00:05]} Kd4 {[%emt 0:00:08]} 88. Kb5 {[%emt 0:00:05]} Ba7 {[%emt 0:00:07]} 89. Kc6 {[%emt 0:00:08]} Kc3 {[%emt 0:00:28]} 90. Kb7 {[%emt 0:00:08]} Bd4 {[%emt 0:00:11]} 91. a7 {[%emt 0:00:04]} Bxa7 {[%emt 0:00:05]} 92. Kxa7 {[%emt 0:00:03]} Kb4 {[%emt 0:00:04]} 93. Kb6 {[%emt 0:00:04]} 1-0

[Event "10th Iberoamericano-ch 2024"]
[Site "Linares"]
[Date "2024.09.28"]
[Round "6.35"]
[White "Buiza Prieto, Eihartze"]
[Black "Vehi Bach, Victor Manuel"]
[Result "1/2-1/2"]
[Annotator "ChessBase"]
[ECO "B41"]
[WhiteElo "2056"]
[BlackElo "2191"]
[PlyCount "41"]
[EventDate "2024.09.25"]
[EventType "swiss"]
[EventCountry "ESP"]
[SourceTitle "playchess.com"]
[Source "ChessBase"]
[SourceQuality "1"]
[TimeControl "5400+30"]

1. e4 {[%emt 0:00:04]} c5 {[%emt 0:00:06]} 2. Nf3 {[%emt 0:00:09]} e6 {[%emt 0:00:21]} 3. d4 {[%emt 0:00:14]} cxd4 4. Nxd4 {[%emt 0:00:07]} a6 {[%emt 0:00:13]} 5. c4 {[%emt 0:00:20]} Nf6 {[%emt 0:00:22]} 6. Nc3 Bb4 {[%emt 0:00:27]} 7. Qd3 {[%emt 0:00:48]} O-O {[%emt 0:01:05]} 8. Be2 {[%emt 0:12:19]} Qc7 {[%emt 0:03:11]} 9. O-O {[%emt 0:01:36]} Nc6 {[%emt 0:01:01]} 10. Nc2 {[%emt 0:07:51]} Ne5 {[%emt 0:14:40]} 11. Qd4 {[%emt 0:06:55]} Be7 {[%emt 0:12:29]} 12. b3 {[%emt 0:20:52]} b6 {[%emt 0:08:23]} 13. Bf4 {[%emt 0:02:33]} d6 {[%emt 0:00:12]} 14. Rac1 {[%emt 0:06:02]} Bb7 {[%emt 0:06:44]} 15. f3 {[%emt 0:01:28]} Rac8 {[%emt 0:13:52]} 16. Na4 {[%emt 0:05:32]} Ned7 {[%emt 0:04:24]} 17. Be3 {[%emt 0:00:42]} Nc5 {[%emt 0:00:07]} 18. Nc3 {[%emt 0:01:06]} Ncd7 {[%emt 0:01:26]} 19. Na4 {[%emt 0:00:09]} Nc5 {[%emt 0:00:09]} 20. Nc3 {[%emt 0:00:07]} Ncd7 {[%emt 0:00:57]} 21. Na4 {[%emt 0:00:24]} 1/2-1/2

[Event "10th Iberoamericano-ch 2024"]
[Site "Linares"]
[Date "2024.09.28"]
[Round "6.36"]
[White "Rocha, Maximiliano"]
[Black "Abrisqueta Zudaire, Leyre"]
[Result "1-0"]
[Annotator "ChessBase"]
[ECO "B12"]
[WhiteElo "2156"]
[BlackElo "2057"]
[PlyCount "117"]
[EventDate "2024.09.25"]
[EventType "swiss"]
[EventCountry "ESP"]
[SourceTitle "playchess.com"]
[Source "ChessBase"]
[SourceQuality "1"]
[TimeControl "5400+30"]

1. e4 {[%emt 0:00:05]} c6 {[%emt 0:00:10]} 2. d4 {[%emt 0:00:13]} d5 {[%emt 0:00:06]} 3. e5 {[%emt 0:00:34]} c5 4. dxc5 {[%emt 0:00:16]} e6 {[%emt 0:01:08]} 5. Be3 {[%emt 0:06:34]} Qc7 {[%emt 0:06:17]} 6. Nf3 Bxc5 7. Bxc5 {[%emt 0:02:04]} Qxc5 {[%emt 0:08:10]} 8. Nc3 {[%emt 0:00:00]} Ne7 {[%emt 0:05:30]} 9. Bd3 {[%emt 0:00:12]} a6 {[%emt 0:01:47]} 10. O-O {[%emt 0:00:15]} Nbc6 {[%emt 0:01:14]} 11. a3 {[%emt 0:02:32]} h6 {[%emt 0:00:28]} 12. Re1 {[%emt 0:01:08]} O-O {[%emt 0:12:17]} 13. Ne2 {[%emt 0:04:10]} Bd7 {[%emt 0:00:30]} 14. Ng3 {[%emt 0:06:20]} b5 {[%emt 0:04:44]} 15. b4 {[%emt 0:00:30]} Qb6 {[%emt 0:00:30]} 16. Rb1 {[%emt 0:01:55]} Ng6 {[%emt 0:10:36]} 17. Qd2 {[%emt 0:08:09]} Qc7 {[%emt 0:12:30]} 18. Qe3 {[%emt 0:11:10]} Qa7 {[%emt 0:00:30]} 19. Qd2 {[%emt 0:00:30]} Qc7 {[%emt 0:00:30]} 20. Qe3 {[%emt 0:00:30]} Qa7 {[%emt 0:00:30]} 21. Qc1 {[%emt 0:00:30]} Qc7 {[%emt 0:00:30]} 22. Nh5 {[%emt 0:00:04]} Ncxe5 {[%emt 0:00:30]} 23. Nxe5 {[%emt 0:00:30]} Nxe5 {[%emt 0:00:04]} 24. Qf4 {[%emt 0:00:00]} f6 {[%emt 0:00:29]} 25. Qg3 {[%emt 0:00:01]} Be8 {[%emt 0:04:40]} 26. Nxf6+ {[%emt 0:00:03]} Rxf6 {[%emt 0:02:38]} 27. Rxe5 {[%emt 0:01:01]} Qb6 {[%emt 0:00:30]} 28. Rbe1 {[%emt 0:00:30]} Bd7 {[%emt 0:02:18]} 29. Qe3 {[%emt 0:03:01]} Qxe3 {[%emt 0:00:42]} 30. R1xe3 {[%emt 0:00:02]} Rc8 {[%emt 0:01:18]} 31. g3 {[%emt 0:00:06]} Kf8 {[%emt 0:00:14]} 32. f4 {[%emt 0:00:51]} Rc3 {[%emt 0:01:52]} 33. f5 exf5 {[%emt 0:02:06]} 34. Rxd5 {[%emt 0:01:44]} Be6 {[%emt 0:03:50]} 35. Rde5 {[%emt 0:07:26]} Kf7 {[%emt 0:02:24]} 36. g4 {[%emt 0:00:57]} g6 {[%emt 0:00:10]} 37. h4 {[%emt 0:03:04]} Ba2 {[%emt 0:08:06]} 38. h5 {[%emt 0:06:12]} gxh5 {[%emt 0:00:50]} 39. gxf5 {[%emt 0:00:11]} Rc7 {[%emt 0:00:57]} 40. Kf2 {[%emt 0:07:02]} Bb1 {[%emt 0:00:41]} 41. Be4 {[%emt 0:01:17]} Bxc2 {[%emt 0:03:18]} 42. Bd5+ {[%emt 0:00:28]} Kg7 {[%emt 0:01:01]} 43. Be6 {[%emt 0:00:45]} Bd1 {[%emt 0:00:13]} 44. Rc5 {[%emt 0:02:57]} Ra7 {[%emt 0:00:28]} 45. Rd3 {[%emt 0:00:58]} Bg4 {[%emt 0:00:12]} 46. Kg3 {[%emt 0:00:40]} Re7 {[%emt 0:01:17]} 47. Rd8 {[%emt 0:02:02]} Rf8 {[%emt 0:01:06]} 48. Rxf8 {[%emt 0:00:23]} Kxf8 {[%emt 0:00:01]} 49. Kf4 {[%emt 0:00:01]} Re8 {[%emt 0:00:48]} 50. Rc7 {[%emt 0:00:28]} Re7 {[%emt 0:00:34]} 51. Rc8+ {[%emt 0:00:13]} Re8 {[%emt 0:00:01]} 52. Rc6 {[%emt 0:00:01]} Ra8 {[%emt 0:00:03]} 53. Rc7 {[%emt 0:00:44]} Re8 {[%emt 0:01:23]} 54. Ke5 {[%emt 0:00:31]} Re7 {[%emt 0:00:26]} 55. Rc6 {[%emt 0:00:18]} h4 {[%emt 0:00:08]} 56. Rc8+ {[%emt 0:00:28]} Re8 {[%emt 0:00:02]} 57. Rc7 {[%emt 0:00:09]} h3 {[%emt 0:00:40]} 58. Rh7 {[%emt 0:00:41]} h5 {[%emt 0:00:29]} 59. Kf6 {[%emt 0:01:28]} 1-0